{"text_format":"3","workbook":"xlsx","n_sheets":1,"sheets":["Zoznam inventára"],"not_rendered":{"images":1,"defined_names":3},"read":"whole","date_system":"1900"}

{"sheet":"Zoznam inventára","index":0,"n_rows":28,"n_cols":13,"rows_kept":28}
[{"$nulls":12}," "]
[{"$nulls":10},"Chcete zvýrazniť položky na doobjednanie?","Áno"]
[null,"Na doobjednanie","ID inventára","Názov","Popis","Jednotková cena","Množstvo na sklade","Hodnota inventára","Úroveň opätovnej objednávky","Čas opätovnej objednávky v dňoch","Množstvo v opätovnej objednávke","Zrušené?"]
[null,{"$f":"IFERROR((Zoznam_inventára_tabuľka[[#This Row],[Množstvo na sklade]]<=Zoznam_inventára_tabuľka[[#This Row],[Úroveň opätovnej objednávky]])*(Zoznam_inventára_tabuľka[[#This Row],[Zrušené?]]=\"\")*valZvýrazniť,0)","v":1},"IN0001","Položka 1","Popis 1",{"v":51,"d":"51.00 EUR"},25,{"$f":"Zoznam_inventára_tabuľka[[#This Row],[Jednotková cena]]*Zoznam_inventára_tabuľka[[#This Row],[Množstvo na sklade]]","v":{"v":1275,"d":"1,275.00 EUR"}},29,13,50]
[null,{"$f":"IFERROR((Zoznam_inventára_tabuľka[[#This Row],[Množstvo na sklade]]<=Zoznam_inventára_tabuľka[[#This Row],[Úroveň opätovnej objednávky]])*(Zoznam_inventára_tabuľka[[#This Row],[Zrušené?]]=\"\")*valZvýrazniť,0)","v":1},"IN0002","Položka 2","Popis 2",{"v":93,"d":"93.00 EUR"},132,{"$f":"Zoznam_inventára_tabuľka[[#This Row],[Jednotková cena]]*Zoznam_inventára_tabuľka[[#This Row],[Množstvo na sklade]]","v":{"v":12276,"d":"12,276.00 EUR"}},231,4,50]
[null,{"$f":"IFERROR((Zoznam_inventára_tabuľka[[#This Row],[Množstvo na sklade]]<=Zoznam_inventára_tabuľka[[#This Row],[Úroveň opätovnej objednávky]])*(Zoznam_inventára_tabuľka[[#This Row],[Zrušené?]]=\"\")*valZvýrazniť,0)","v":0},"IN0003","Položka 3","Popis 3",{"v":57,"d":"57.00 EUR"},151,{"$f":"Zoznam_inventára_tabuľka[[#This Row],[Jednotková cena]]*Zoznam_inventára_tabuľka[[#This Row],[Množstvo na sklade]]","v":{"v":8607,"d":"8,607.00 EUR"}},114,11,150]
[null,{"$f":"IFERROR((Zoznam_inventára_tabuľka[[#This Row],[Množstvo na sklade]]<=Zoznam_inventára_tabuľka[[#This Row],[Úroveň opätovnej objednávky]])*(Zoznam_inventára_tabuľka[[#This Row],[Zrušené?]]=\"\")*valZvýrazniť,0)","v":0},"IN0004","Položka 4","Popis 4",{"v":19,"d":"19.00 EUR"},186,{"$f":"Zoznam_inventára_tabuľka[[#This Row],[Jednotková cena]]*Zoznam_inventára_tabuľka[[#This Row],[Množstvo na sklade]]","v":{"v":3534,"d":"3,534.00 EUR"}},158,6,50]
[null,{"$f":"IFERROR((Zoznam_inventára_tabuľka[[#This Row],[Množstvo na sklade]]<=Zoznam_inventára_tabuľka[[#This Row],[Úroveň opätovnej objednávky]])*(Zoznam_inventára_tabuľka[[#This Row],[Zrušené?]]=\"\")*valZvýrazniť,0)","v":0},"IN0005","Položka 5","Popis 5",{"v":75,"d":"75.00 EUR"},62,{"$f":"Zoznam_inventára_tabuľka[[#This Row],[Jednotková cena]]*Zoznam_inventára_tabuľka[[#This Row],[Množstvo na sklade]]","v":{"v":4650,"d":"4,650.00 EUR"}},39,12,50]
[null,{"$f":"IFERROR((Zoznam_inventára_tabuľka[[#This Row],[Množstvo na sklade]]<=Zoznam_inventára_tabuľka[[#This Row],[Úroveň opätovnej objednávky]])*(Zoznam_inventára_tabuľka[[#This Row],[Zrušené?]]=\"\")*valZvýrazniť,0)","v":1},"IN0006","Položka 6","Popis 6",{"v":11,"d":"11.00 EUR"},5,{"$f":"Zoznam_inventára_tabuľka[[#This Row],[Jednotková cena]]*Zoznam_inventára_tabuľka[[#This Row],[Množstvo na sklade]]","v":{"v":55,"d":"55.00 EUR"}},9,13,150]
[null,{"$f":"IFERROR((Zoznam_inventára_tabuľka[[#This Row],[Množstvo na sklade]]<=Zoznam_inventára_tabuľka[[#This Row],[Úroveň opätovnej objednávky]])*(Zoznam_inventára_tabuľka[[#This Row],[Zrušené?]]=\"\")*valZvýrazniť,0)","v":0},"IN0007","Položka 7","Popis 7",{"v":56,"d":"56.00 EUR"},58,{"$f":"Zoznam_inventára_tabuľka[[#This Row],[Jednotková cena]]*Zoznam_inventára_tabuľka[[#This Row],[Množstvo na sklade]]","v":{"v":3248,"d":"3,248.00 EUR"}},109,7,100,"Áno"]
[null,{"$f":"IFERROR((Zoznam_inventára_tabuľka[[#This Row],[Množstvo na sklade]]<=Zoznam_inventára_tabuľka[[#This Row],[Úroveň opätovnej objednávky]])*(Zoznam_inventára_tabuľka[[#This Row],[Zrušené?]]=\"\")*valZvýrazniť,0)","v":1},"IN0008","Položka 8","Popis 8",{"v":38,"d":"38.00 EUR"},101,{"$f":"Zoznam_inventára_tabuľka[[#This Row],[Jednotková cena]]*Zoznam_inventára_tabuľka[[#This Row],[Množstvo na sklade]]","v":{"v":3838,"d":"3,838.00 EUR"}},162,3,100]
[null,{"$f":"IFERROR((Zoznam_inventára_tabuľka[[#This Row],[Množstvo na sklade]]<=Zoznam_inventára_tabuľka[[#This Row],[Úroveň opätovnej objednávky]])*(Zoznam_inventára_tabuľka[[#This Row],[Zrušené?]]=\"\")*valZvýrazniť,0)","v":0},"IN0009","Položka 9","Popis 9",{"v":59,"d":"59.00 EUR"},122,{"$f":"Zoznam_inventára_tabuľka[[#This Row],[Jednotková cena]]*Zoznam_inventára_tabuľka[[#This Row],[Množstvo na sklade]]","v":{"v":7198,"d":"7,198.00 EUR"}},82,3,150]
[null,{"$f":"IFERROR((Zoznam_inventára_tabuľka[[#This Row],[Množstvo na sklade]]<=Zoznam_inventára_tabuľka[[#This Row],[Úroveň opätovnej objednávky]])*(Zoznam_inventára_tabuľka[[#This Row],[Zrušené?]]=\"\")*valZvýrazniť,0)","v":1},"IN0010","Položka 10","Popis 10",{"v":50,"d":"50.00 EUR"},175,{"$f":"Zoznam_inventára_tabuľka[[#This Row],[Jednotková cena]]*Zoznam_inventára_tabuľka[[#This Row],[Množstvo na sklade]]","v":{"v":8750,"d":"8,750.00 EUR"}},283,8,150]
[null,{"$f":"IFERROR((Zoznam_inventára_tabuľka[[#This Row],[Množstvo na sklade]]<=Zoznam_inventára_tabuľka[[#This Row],[Úroveň opätovnej objednávky]])*(Zoznam_inventára_tabuľka[[#This Row],[Zrušené?]]=\"\")*valZvýrazniť,0)","v":1},"IN0011","Položka 11","Popis 11",{"v":59,"d":"59.00 EUR"},176,{"$f":"Zoznam_inventára_tabuľka[[#This Row],[Jednotková cena]]*Zoznam_inventára_tabuľka[[#This Row],[Množstvo na sklade]]","v":{"v":10384,"d":"10,384.00 EUR"}},229,1,100]
[null,{"$f":"IFERROR((Zoznam_inventára_tabuľka[[#This Row],[Množstvo na sklade]]<=Zoznam_inventára_tabuľka[[#This Row],[Úroveň opätovnej objednávky]])*(Zoznam_inventára_tabuľka[[#This Row],[Zrušené?]]=\"\")*valZvýrazniť,0)","v":1},"IN0012","Položka 12","Popis 12",{"v":18,"d":"18.00 EUR"},22,{"$f":"Zoznam_inventára_tabuľka[[#This Row],[Jednotková cena]]*Zoznam_inventára_tabuľka[[#This Row],[Množstvo na sklade]]","v":{"v":396,"d":"396.00 EUR"}},36,12,50]
[null,{"$f":"IFERROR((Zoznam_inventára_tabuľka[[#This Row],[Množstvo na sklade]]<=Zoznam_inventára_tabuľka[[#This Row],[Úroveň opätovnej objednávky]])*(Zoznam_inventára_tabuľka[[#This Row],[Zrušené?]]=\"\")*valZvýrazniť,0)","v":1},"IN0013","Položka 13","Popis 13",{"v":26,"d":"26.00 EUR"},72,{"$f":"Zoznam_inventára_tabuľka[[#This Row],[Jednotková cena]]*Zoznam_inventára_tabuľka[[#This Row],[Množstvo na sklade]]","v":{"v":1872,"d":"1,872.00 EUR"}},102,9,100]
[null,{"$f":"IFERROR((Zoznam_inventára_tabuľka[[#This Row],[Množstvo na sklade]]<=Zoznam_inventára_tabuľka[[#This Row],[Úroveň opätovnej objednávky]])*(Zoznam_inventára_tabuľka[[#This Row],[Zrušené?]]=\"\")*valZvýrazniť,0)","v":1},"IN0014","Položka 14","Popis 14",{"v":42,"d":"42.00 EUR"},62,{"$f":"Zoznam_inventára_tabuľka[[#This Row],[Jednotková cena]]*Zoznam_inventára_tabuľka[[#This Row],[Množstvo na sklade]]","v":{"v":2604,"d":"2,604.00 EUR"}},83,2,100]
[null,{"$f":"IFERROR((Zoznam_inventára_tabuľka[[#This Row],[Množstvo na sklade]]<=Zoznam_inventára_tabuľka[[#This Row],[Úroveň opätovnej objednávky]])*(Zoznam_inventára_tabuľka[[#This Row],[Zrušené?]]=\"\")*valZvýrazniť,0)","v":0},"IN0015","Položka 15","Popis 15",{"v":32,"d":"32.00 EUR"},46,{"$f":"Zoznam_inventára_tabuľka[[#This Row],[Jednotková cena]]*Zoznam_inventára_tabuľka[[#This Row],[Množstvo na sklade]]","v":{"v":1472,"d":"1,472.00 EUR"}},23,15,50]
[null,{"$f":"IFERROR((Zoznam_inventára_tabuľka[[#This Row],[Množstvo na sklade]]<=Zoznam_inventára_tabuľka[[#This Row],[Úroveň opätovnej objednávky]])*(Zoznam_inventára_tabuľka[[#This Row],[Zrušené?]]=\"\")*valZvýrazniť,0)","v":1},"IN0016","Položka 16","Popis 16",{"v":90,"d":"90.00 EUR"},96,{"$f":"Zoznam_inventára_tabuľka[[#This Row],[Jednotková cena]]*Zoznam_inventára_tabuľka[[#This Row],[Množstvo na sklade]]","v":{"v":8640,"d":"8,640.00 EUR"}},180,3,50]
[null,{"$f":"IFERROR((Zoznam_inventára_tabuľka[[#This Row],[Množstvo na sklade]]<=Zoznam_inventára_tabuľka[[#This Row],[Úroveň opätovnej objednávky]])*(Zoznam_inventára_tabuľka[[#This Row],[Zrušené?]]=\"\")*valZvýrazniť,0)","v":0},"IN0017","Položka 17","Popis 17",{"v":97,"d":"97.00 EUR"},57,{"$f":"Zoznam_inventára_tabuľka[[#This Row],[Jednotková cena]]*Zoznam_inventára_tabuľka[[#This Row],[Množstvo na sklade]]","v":{"v":5529,"d":"5,529.00 EUR"}},98,12,50,"Áno"]
[null,{"$f":"IFERROR((Zoznam_inventára_tabuľka[[#This Row],[Množstvo na sklade]]<=Zoznam_inventára_tabuľka[[#This Row],[Úroveň opätovnej objednávky]])*(Zoznam_inventára_tabuľka[[#This Row],[Zrušené?]]=\"\")*valZvýrazniť,0)","v":1},"IN0018","Položka 18","Popis 18",{"v":12,"d":"12.00 EUR"},6,{"$f":"Zoznam_inventára_tabuľka[[#This Row],[Jednotková cena]]*Zoznam_inventára_tabuľka[[#This Row],[Množstvo na sklade]]","v":{"v":72,"d":"72.00 EUR"}},7,13,50]
[null,{"$f":"IFERROR((Zoznam_inventára_tabuľka[[#This Row],[Množstvo na sklade]]<=Zoznam_inventára_tabuľka[[#This Row],[Úroveň opätovnej objednávky]])*(Zoznam_inventára_tabuľka[[#This Row],[Zrušené?]]=\"\")*valZvýrazniť,0)","v":1},"IN0019","Položka 19","Popis 19",{"v":82,"d":"82.00 EUR"},143,{"$f":"Zoznam_inventára_tabuľka[[#This Row],[Jednotková cena]]*Zoznam_inventára_tabuľka[[#This Row],[Množstvo na sklade]]","v":{"v":11726,"d":"11,726.00 EUR"}},164,12,150]
[null,{"$f":"IFERROR((Zoznam_inventára_tabuľka[[#This Row],[Množstvo na sklade]]<=Zoznam_inventára_tabuľka[[#This Row],[Úroveň opätovnej objednávky]])*(Zoznam_inventára_tabuľka[[#This Row],[Zrušené?]]=\"\")*valZvýrazniť,0)","v":0},"IN0020","Položka 20","Popis 20",{"v":16,"d":"16.00 EUR"},124,{"$f":"Zoznam_inventára_tabuľka[[#This Row],[Jednotková cena]]*Zoznam_inventára_tabuľka[[#This Row],[Množstvo na sklade]]","v":{"v":1984,"d":"1,984.00 EUR"}},113,14,50]
[null,{"$f":"IFERROR((Zoznam_inventára_tabuľka[[#This Row],[Množstvo na sklade]]<=Zoznam_inventára_tabuľka[[#This Row],[Úroveň opätovnej objednávky]])*(Zoznam_inventára_tabuľka[[#This Row],[Zrušené?]]=\"\")*valZvýrazniť,0)","v":0},"IN0021","Položka 21","Popis 21",{"v":19,"d":"19.00 EUR"},112,{"$f":"Zoznam_inventára_tabuľka[[#This Row],[Jednotková cena]]*Zoznam_inventára_tabuľka[[#This Row],[Množstvo na sklade]]","v":{"v":2128,"d":"2,128.00 EUR"}},75,11,50]
[null,{"$f":"IFERROR((Zoznam_inventára_tabuľka[[#This Row],[Množstvo na sklade]]<=Zoznam_inventára_tabuľka[[#This Row],[Úroveň opätovnej objednávky]])*(Zoznam_inventára_tabuľka[[#This Row],[Zrušené?]]=\"\")*valZvýrazniť,0)","v":0},"IN0022","Položka 22","Popis 22",{"v":24,"d":"24.00 EUR"},182,{"$f":"Zoznam_inventára_tabuľka[[#This Row],[Jednotková cena]]*Zoznam_inventára_tabuľka[[#This Row],[Množstvo na sklade]]","v":{"v":4368,"d":"4,368.00 EUR"}},132,15,150]
[null,{"$f":"IFERROR((Zoznam_inventára_tabuľka[[#This Row],[Množstvo na sklade]]<=Zoznam_inventára_tabuľka[[#This Row],[Úroveň opätovnej objednávky]])*(Zoznam_inventára_tabuľka[[#This Row],[Zrušené?]]=\"\")*valZvýrazniť,0)","v":0},"IN0023","Položka 23","Popis 23",{"v":29,"d":"29.00 EUR"},106,{"$f":"Zoznam_inventára_tabuľka[[#This Row],[Jednotková cena]]*Zoznam_inventára_tabuľka[[#This Row],[Množstvo na sklade]]","v":{"v":3074,"d":"3,074.00 EUR"}},142,1,150,"Áno"]
[null,{"$f":"IFERROR((Zoznam_inventára_tabuľka[[#This Row],[Množstvo na sklade]]<=Zoznam_inventára_tabuľka[[#This Row],[Úroveň opätovnej objednávky]])*(Zoznam_inventára_tabuľka[[#This Row],[Zrušené?]]=\"\")*valZvýrazniť,0)","v":0},"IN0024","Položka 24","Popis 24",{"v":75,"d":"75.00 EUR"},173,{"$f":"Zoznam_inventára_tabuľka[[#This Row],[Jednotková cena]]*Zoznam_inventára_tabuľka[[#This Row],[Množstvo na sklade]]","v":{"v":12975,"d":"12,975.00 EUR"}},127,9,100]
[null,{"$f":"IFERROR((Zoznam_inventára_tabuľka[[#This Row],[Množstvo na sklade]]<=Zoznam_inventára_tabuľka[[#This Row],[Úroveň opätovnej objednávky]])*(Zoznam_inventára_tabuľka[[#This Row],[Zrušené?]]=\"\")*valZvýrazniť,0)","v":0},"IN0025","Položka 25","Popis 25",{"v":14,"d":"14.00 EUR"},28,{"$f":"Zoznam_inventára_tabuľka[[#This Row],[Jednotková cena]]*Zoznam_inventára_tabuľka[[#This Row],[Množstvo na sklade]]","v":{"v":392,"d":"392.00 EUR"}},21,8,50]